bitfinex/quotes_ETHUSD_20250428
["timestamp","ask_amount","ask_price","bid_price","bid_amount"]
[1745815324402,0.83670776,1790.4,1790.2,0.6187]
[1745815324565,0.3137654,1790.4,1790.3,0.15243584]
[1745815325390,0.83670776,1790.5,1790.3,0.15243584]
[1745815325599,0.3137654,1790.5,1790.3,0.15243584]
[1745815326097,0.3137654,1790.6,1790.3,0.15243584]
[1745815326302,1.1959763,1790.6,1790.3,0.15243584]
[1745815328401,1.9717763,1790.6,1790.3,0.15243584]
[1745815328999,0.3137654,1790.5,1790.3,0.15243584]
[1745815330096,0.3137654,1790.5,1790.3,0.6187]
[1745815330398,0.3137654,1790.5,1790.4,0.1523901]
[1745815330600,0.3137654,1790.5,1790.3,0.6187]
[1745815330900,0.3137654,1790.5,1790.4,0.1523901]
[1745815331300,0.3137654,1790.5,1790.3,0.6187]
[1745815331598,1.19598469,1790.6,1790.4,0.1523901]
[1745815331901,1.19598469,1790.6,1790.2,0.6187]
[1745815332096,1.19598469,1790.6,1790.5,0.15234436]
[1745815332325,1.19598469,1790.6,1790.2,0.6187]
[1745815332774,1.19598469,1790.6,1790.3,0.15243584]
[1745815333375,0.3137654,1790.5,1790.3,0.15243584]
[1745815336132,4.1205654,1790.5,1790.3,0.15243584]
[1745815336308,0.41205654,1790.4,1790.3,0.15243584]
[1745815336499,0.41205654,1790.4,1790.1,5.14034]
[1745815336702,0.93289929,1790.4,1790.3,0.15333793]
[1745815336900,0.93289929,1790.4,1790.2,0.15338367]
[1745815337194,0.93289929,1790.4,1790.3,0.15333793]
[1745815337529,1.24590659,1790.4,1790.1,5.14034]
[1745815337728,1.24590659,1790.4,1790.3,0.15333793]
[1745815337932,1.24590659,1790.4,1790.1,5.14034]
[1745815337933,1.24590659,1790.4,1790.2,0.15338367]
[1745815338133,1.24590659,1790.4,1790.3,0.15333793]
[1745815338533,2.46557831,1790.4,1790.1,0.40734]
[1745815338699,2.46557831,1790.4,1790.3,0.15367626]
[1745815339330,2.46557831,1790.4,1790.1,0.40734]
[1745815339632,1.94473556,1790.4,1790.2,0.15372201]
[1745815340034,0.3130073,1790.3,1790.1,0.40734]
[1745815340231,0.83486907,1790.3,1790.1,0.40734]
[1745815340941,0.3130073,1790.2,1790.1,0.40734]
[1745815342105,0.83518417,1790.2,1790.1,0.40734]
[1745815342509,2.27170295,1790.2,1790.1,0.40734]
[1745815342824,11.90555996,1790.2,1790.1,0.40734]
[1745815343005,11.83572418,1790.2,1790.1,0.40734]
[1745815345718,11.2060054,1790.2,1790.1,0.40734]
[1745815345945,6.8720351,1790.2,1790.1,0.40734]
[1745815346350,9.8720351,1790.2,1790.1,0.40734]
[1745815346849,6.8720351,1790.2,1790.1,0.40734]
[1745815347144,9.8720351,1790.2,1790.1,0.40734]
[1745815347514,3.83518417,1790.2,1790.1,0.40734]
[1745815348914,3.83518417,1790.2,1790.1,0.5502852]
[1745815352932,3.83518417,1790.2,1790.1,1.1689852]
[1745815352933,0.83518417,1790.2,1790.1,1.1689852]
[1745815353750,0.3130073,1790.2,1790.1,1.1689852]
[1745815354669,0.3130073,1790.2,1790.1,0.5502852]
[1745815354958,0.83589009,1790.2,1790.1,0.5502852]
[1745815364378,0.83630242,1790.2,1790.1,0.5502852]
[1745815373689,0.83667954,1790.2,1790.1,0.5502852]
[1745815379939,0.83667954,1790.2,1790.1,1.1689852]
[1745815380806,0.3130073,1790.2,1790.1,1.1689852]
[1745815383468,3.0,1790.6,1790.1,1.1689852]
[1745815383686,4.04514697,1790.6,1790.1,1.1689852]
[1745815384112,0.31406977,1790.5,1790.1,1.1689852]
[1745815384280,0.83752469,1790.5,1790.1,1.1689852]
[1745815384677,0.52345492,1790.4,1790.1,1.1689852]
[1745815384876,0.83752469,1790.4,1790.1,1.1689852]
[1745815385330,0.52345492,1790.3,1790.1,1.1689852]
[1745815385634,0.31406977,1790.4,1790.1,1.1689852]
[1745815385829,0.31406977,1790.3,1790.1,1.1689852]
[1745815386438,4.41461878,1790.7,1790.1,1.1689852]
[1745815386602,0.44146188,1790.6,1790.1,1.1689852]
[1745815387122,0.52326565,1790.5,1790.1,1.1689852]
[1745815387325,0.83721983,1790.5,1790.1,1.1689852]
[1745815387524,0.52326565,1790.4,1790.1,1.1689852]
[1745815387837,0.52326565,1790.3,1790.1,1.1689852]
[1745815388004,0.83721983,1790.3,1790.1,1.1689852]
[1745815388339,0.31395418,1790.3,1790.1,1.1689852]
[1745815388637,0.31395418,1790.3,1790.1,5.9009852]
[1745815389042,1.64395315,1790.6,1790.1,5.9009852]
[1745815389623,0.52315785,1790.5,1790.1,5.9009852]
[1745815389816,0.31389505,1790.4,1790.1,5.9009852]
[1745815390115,0.8370529,1790.4,1790.1,5.9009852]
[1745815390516,0.8370529,1790.3,1790.1,5.9009852]
[1745815391017,0.31389505,1790.3,1790.1,5.9009852]
[1745815391514,1.64395315,1790.6,1790.1,5.9009852]
[1745815391939,0.52312275,1790.5,1790.1,5.9009852]
[1745815392105,0.8369964,1790.5,1790.1,5.9009852]
[1745815392305,0.52312275,1790.4,1790.1,5.9009852]
[1745815392818,0.31387365,1790.3,1790.1,5.9009852]
[1745815393621,1.64395315,1790.6,1790.1,5.9009852]
[1745815394259,0.52313254,1790.5,1790.1,5.9009852]
[1745815394557,0.52313254,1790.4,1790.1,5.9009852]
[1745815395160,0.83701258,1790.3,1790.1,5.9009852]
[1745815395448,0.31388004,1790.3,1790.1,5.9009852]
[1745815396032,1.64395315,1790.6,1790.1,5.9009852]
[1745815396755,0.52315579,1790.5,1790.1,5.9009852]
[1745815397351,0.83704935,1790.4,1790.1,5.9009852]
[1745815397652,0.52315579,1790.3,1790.1,5.9009852]
[1745815397954,1.27915579,1790.3,1790.1,0.5502852]
[1745815398139,2.10450922,1790.2,1790.1,0.5502852]
[1745815398347,2.03469127,1790.2,1790.1,0.5502852]
[1745815398518,5.55794539,1790.2,1790.1,0.5502852]
[1745815398726,3.83721764,1790.2,1790.1,0.5502852]
[1745815400285,4.3041594,1790.2,1790.1,0.5502852]
[1745815401167,3.83721764,1790.2,1790.1,1.1689852]
[1745815401374,0.83721764,1790.2,1790.1,1.1689852]
[1745815401749,0.31396352,1790.2,1790.1,1.1689852]
[1745815402487,0.42475225,1790.5,1790.1,1.1689852]
[1745815402649,0.31396352,1790.6,1790.1,1.1689852]
[1745815403086,0.31396352,1790.5,1790.1,1.1689852]
[1745815404152,0.31396352,1790.4,1790.1,1.1689852]
[1745815404785,0.7912,1790.8,1790.2,0.6187]
[1745815404983,1.47400509,1790.8,1790.3,4.731]
[1745815405186,0.7912,1790.8,1790.4,0.6187]
[1745815405685,0.31383174,1790.7,1790.5,0.11784783]
[1745815406752,0.31383174,1790.6,1790.5,0.11784783]
[1745815412496,1.09613174,1790.6,1790.5,0.11784783]
[1745815412664,1.09613174,1790.6,1790.2,0.6187]
[1745815412998,0.31383174,1790.6,1790.3,0.11793931]
[1745815413693,0.31383174,1790.5,1790.3,0.11793931]
[1745815414699,1.20767162,1790.8,1790.3,0.11793931]
[1745815414865,1.69158879,1790.8,1790.3,0.11793931]
[1745815415297,0.31366411,1790.7,1790.3,0.11793931]
[1745815416301,0.31366411,1790.7,1790.4,0.6187]
[1745815416596,0.31366411,1790.6,1790.5,4.73]
[1745815417080,0.31366411,1790.6,1790.5,4.846779]
[1745815417394,0.31366411,1790.8,1790.5,4.846779]
[1745815418010,3.0,1790.9,1790.5,4.846779]
[1745815418214,3.98191509,1790.9,1790.5,4.846779]
[1745815420105,3.0,1790.9,1790.5,4.846779]
[1745815420311,3.41855822,1790.9,1790.5,4.846779]
[1745815420809,0.41855822,1790.9,1790.5,4.846779]
[1745815421009,0.7823,1791.0,1790.5,4.846779]
[1745815421689,0.31330938,1790.9,1790.5,4.846779]
[1745815422114,0.31330938,1790.9,1790.6,0.6187]
[1745815422623,0.31330938,1790.9,1790.6,0.73368954]
[1745815423333,0.7823,1791.0,1790.6,0.73368954]
[1745815423933,1.19880129,1791.0,1790.6,0.73368954]
[1745815425534,0.31320328,1790.9,1790.6,0.73368954]
[1745815426209,1.19880129,1791.0,1790.6,0.73368954]
[1745815426410,1.61868142,1791.0,1790.6,0.73368954]
[1745815428332,0.31319533,1790.9,1790.6,0.73368954]
[1745815428538,0.8058,1790.8,1790.6,0.11498954]
[1745815428833,0.8058,1790.8,1790.4,4.728]
[1745815429016,0.8058,1790.8,1790.7,0.11303175]
[1745815429219,1.28084954,1790.8,1790.4,4.728]
[1745815429396,1.11899533,1790.8,1790.7,0.11303175]
[1745815429598,1.11899533,1790.8,1790.4,4.728]
[1745815429837,1.11899533,1790.8,1790.5,0.11312321]
[1745815430277,0.31319533,1790.7,1790.5,0.11312321]
[1745815430972,0.8058,1790.8,1790.5,0.11312321]
[1745815432573,0.31373581,1790.7,1790.5,0.11312321]
[1745815433262,0.31373581,1790.6,1790.5,0.11312321]
[1745815435199,0.8058,1790.8,1790.5,0.11312321]
[1745815436182,0.3138508,1790.7,1790.5,0.11312321]
[1745815436784,0.3138508,1790.6,1790.5,0.11312321]
[1745815439370,0.3138508,1790.6,1790.5,0.73182321]
[1745815439568,0.3138508,1790.7,1790.5,0.73182321]
[1745815441004,0.41650129,1791.0,1790.5,0.73182321]
[1745815441312,3.8108,1791.1,1790.5,0.73182321]
[1745815441467,4.79556509,1791.1,1790.5,0.73182321]
[1745815441820,0.31385727,1791.0,1790.5,0.73182321]
[1745815443180,0.31385727,1790.9,1790.5,0.73182321]
[1745815443504,0.31385727,1790.9,1790.6,0.6187]
[1745815443872,6.82215093,1791.2,1790.7,0.11353783]
[1745815444073,0.68221509,1791.1,1790.7,0.11353783]
[1745815444275,0.68221509,1791.1,1790.6,0.6187]
[1745815444594,0.31386089,1791.0,1790.7,0.11353783]
[1745815444795,0.31386089,1791.0,1790.6,0.6187]
[1745815444998,0.31386089,1791.0,1790.7,0.11353783]
[1745815445299,0.31386089,1791.0,1790.6,0.6187]
[1745815445503,0.31386089,1790.9,1790.8,0.11349211]
[1745815445688,0.31386089,1790.9,1790.7,0.11353783]
[1745815446010,0.31386089,1790.9,1790.8,0.11349211]
[1745815446187,0.31386089,1790.9,1790.6,0.6187]
[1745815446506,0.31386089,1790.9,1790.7,0.11353783]
[1745815446873,0.31386089,1790.9,1790.6,0.6187]
[1745815447105,0.31386089,1790.9,1790.8,0.11349211]
[1745815447293,0.31386089,1790.9,1790.7,0.11353783]
[1745815447500,0.31386089,1790.9,1790.8,0.11349211]
[1745815447890,0.31386089,1790.9,1790.6,0.6187]
[1745815448090,0.31386089,1790.9,1790.8,0.11349211]
[1745815448297,0.40910843,1791.1,1790.7,0.11353783]
[1745815448610,0.7853,1791.2,1790.8,0.11349211]
[1745815448811,1.8306651,1791.2,1790.6,0.6187]
[1745815449015,1.8306651,1791.2,1790.9,0.11344639]
[1745815449217,1.8306651,1791.2,1790.6,0.6187]
[1745815449514,0.31384414,1791.1,1791.0,0.11340068]
[1745815449713,0.31384414,1791.1,1790.8,4.728]
[1745815449913,0.31384414,1791.1,1791.0,0.11340068]
[1745815450225,0.72540828,1791.1,1791.0,0.11340068]
[1745815450426,0.72540828,1791.1,1790.8,4.728]
[1745815450714,0.72540828,1791.1,1790.9,0.11344639]
[1745815451114,0.72540828,1791.1,1790.8,4.728]
[1745815451318,0.41156414,1791.1,1791.0,0.11340068]
[1745815451480,9.03685093,1791.3,1791.0,0.6187]
[1745815451685,9.03685093,1791.3,1791.0,0.73210068]
[1745815452079,0.31379109,1791.2,1791.0,0.73210068]
[1745815452809,0.31379109,1791.1,1791.0,0.73210068]
[1745815453907,0.31379109,1791.1,1791.0,0.11340068]
[1745815454414,0.31379109,1791.1,1791.0,0.11154511]
[1745815454594,0.31379109,1791.1,1790.8,5.3467]
[1745815454790,0.7859,1791.2,1791.0,0.11154511]
[1745815455008,0.7859,1791.2,1790.8,5.3467]
[1745815455205,0.7859,1791.2,1790.9,0.11159083]
[1745815455407,0.7859,1791.2,1790.8,5.3467]
[1745815455723,0.31362625,1791.1,1790.9,0.11159083]
[1745815456020,0.31362625,1791.1,1790.8,5.3467]
[1745815456224,0.31362625,1791.1,1791.0,0.11154511]
[1745815456517,0.31362625,1791.1,1790.8,5.3467]
[1745815456825,0.31362625,1791.1,1790.9,0.11159083]
[1745815457125,1.4598903,1791.0,1790.8,4.727]
[1745815457420,1.3901001,1791.0,1790.7,4.727]
[1745815458017,0.31362625,1790.9,1790.4,0.6187]
[1745815458320,0.31362625,1790.9,1790.6,4.727]
[1745815458820,0.31362625,1790.8,1790.6,4.727]
[1745815459910,0.31362625,1790.7,1790.6,4.727]
[1745815468915,0.7586,1791.0,1790.6,4.727]
[1745815469313,0.31378002,1790.9,1790.6,4.727]
[1745815470034,0.31378002,1790.8,1790.6,4.727]
[1745815471033,0.7586,1791.0,1790.6,4.727]
[1745815471227,1.43814509,1791.0,1790.6,4.727]
[1745815471433,1.43814509,1791.0,1790.6,5.3457]
[1745815471638,0.7586,1791.0,1790.6,5.3457]
[1745815472141,0.31378268,1790.9,1790.6,5.3457]
[1745815473039,0.31378268,1790.8,1790.6,5.3457]
[1745815474008,0.7586,1791.0,1790.6,5.3457]
[1745815474743,0.31378742,1790.9,1790.6,5.3457]
[1745815475750,0.31378742,1790.8,1790.6,5.3457]
[1745815476341,0.7586,1791.0,1790.6,5.3457]
[1745815476646,1.43814509,1791.0,1790.6,5.3457]
[1745815477347,0.31381101,1790.9,1790.6,4.727]
[1745815477547,3.31381101,1790.9,1790.6,4.727]
[1745815478848,0.31381101,1790.8,1790.6,4.727]
[1745815479947,0.31381101,1790.7,1790.6,4.727]
[1745815483037,0.31381101,1790.7,1790.6,5.3457]
[1745815483780,3.0,1791.0,1790.6,5.3457]
[1745815484082,3.90368509,1791.0,1790.6,5.3457]
[1745815484290,0.31389106,1790.9,1790.6,5.3457]
[1745815485252,0.31389106,1790.8,1790.6,5.3457]
[1745815486151,3.0,1791.0,1790.6,5.3457]
[1745815486869,0.31413445,1790.9,1790.6,5.3457]
[1745815488139,0.31413445,1790.8,1790.6,5.3457]
[1745815488867,0.31413445,1790.7,1790.6,5.3457]
[1745815495672,0.31413445,1790.7,1790.6,9.88606297]
[1745815496042,0.7885,1791.5,1790.9,0.6187]
[1745815496361,1.16735,1791.5,1791.0,4.726]
[1745815496736,0.31383578,1791.4,1791.0,4.726]
[1745815497464,0.73399808,1791.4,1791.0,4.726]
[1745815497666,0.31383578,1791.4,1791.0,4.726]
[1745815498099,0.31383578,1791.3,1791.0,4.726]
[1745815499007,0.31383578,1791.2,1791.0,4.726]
[1745815499600,0.7885,1791.5,1791.0,4.726]
[1745815499803,1.23045588,1791.5,1791.0,4.726]
[1745815500274,0.31351767,1791.4,1791.0,4.726]
[1745815501005,0.73167219,1791.4,1791.0,4.726]
[1745815501172,0.31351767,1791.3,1791.0,4.726]
[1745815501703,0.7885,1791.5,1791.0,4.726]
[1745815502501,0.31334651,1791.4,1791.0,4.726]
[1745815503416,0.31334651,1791.3,1791.0,4.726]
[1745815504595,0.7885,1791.5,1791.0,4.726]
[1745815504795,1.64676628,1791.5,1791.0,4.726]
[1745815505645,0.3131906,1791.4,1791.0,4.726]
[1745815506441,1.2048104,1791.5,1791.0,4.726]
[1745815507547,2.40617168,1791.5,1791.0,4.726]
[1745815508213,3.3131287,1791.4,1791.0,4.726]
[1745815509071,0.3131287,1791.3,1791.0,4.726]
[1745815509859,3.0,1791.4,1791.0,4.726]
[1745815511373,1.20136128,1791.1,1791.0,4.725]
[1745815511587,1.20136128,1791.2,1791.0,4.725]
[1745815512140,1.97296128,1791.3,1791.0,4.725]
[1745815512678,0.31321742,1791.2,1791.0,4.725]
[1745815513743,0.7716,1791.3,1791.0,4.725]
[1745815514679,0.63085568,1791.2,1790.7,0.6187]
[1745815514857,1.1214854,1791.1,1790.8,4.725]
[1745815515053,1.59671951,1791.1,1790.8,4.725]
[1745815515462,1.59671951,1791.1,1790.6,16.767]
[1745815515656,1.59671951,1791.1,1790.7,4.725]
[1745815515882,0.3132854,1791.0,1790.7,5.3437]
[1745815516786,0.3132854,1791.1,1790.7,5.3437]
[1745815517588,3.0,1791.2,1790.7,5.3437]
[1745815519879,0.31340515,1791.1,1790.7,5.3437]
[1745815520481,0.31340515,1791.0,1790.7,5.3437]
[1745815521499,3.0,1791.2,1790.7,5.3437]
[1745815521672,3.98450509,1791.2,1790.7,5.3437]
[1745815522276,0.8317,1791.1,1790.7,5.3437]
[1745815522477,1.14521369,1791.1,1790.7,5.3437]
[1745815523273,1.46255568,1791.0,1790.3,5.429856]
[1745815523471,1.46255568,1791.0,1790.4,4.723]
[1745815523673,0.31351369,1790.9,1790.4,4.723]
[1745815524989,0.31351369,1790.8,1790.4,4.723]
[1745815525817,0.8317,1791.0,1790.4,4.723]
[1745815526917,0.3135696,1790.9,1790.4,4.723]
[1745815527116,0.7634,1790.8,1790.3,5.429856]
[1745815527417,0.7634,1790.8,1790.4,4.723]
[1745815527711,0.3135696,1790.7,1790.4,4.723]
[1745815527919,0.7559,1790.6,1790.4,4.723]
[1745815530890,1.06923708,1790.6,1790.4,4.723]
[1745815531618,0.7559,1790.6,1790.4,4.723]
[1745815534635,1.06923708,1790.6,1790.4,4.723]
[1745815535226,0.7559,1790.6,1790.4,4.723]
[1745815537027,1.06923708,1790.6,1790.4,4.723]
[1745815538027,0.7559,1790.6,1790.4,4.723]
[1745815538706,1.06923708,1790.6,1790.4,4.723]
[1745815539630,0.31333708,1790.6,1790.4,4.723]
[1745815540307,0.7901,1790.7,1790.4,4.723]
[1745815541503,1.10339717,1790.7,1790.4,4.723]
[1745815542550,0.7901,1790.7,1790.4,4.723]
[1745815543231,3.0,1790.8,1790.4,4.723]
[1745815543401,4.81942294,1790.8,1790.4,4.723]
[1745815543735,0.7539,1790.7,1790.3,9.24348538]
[1745815547244,0.31354341,1790.6,1790.3,9.24348538]
[1745815547942,0.7539,1790.7,1790.3,9.24348538]
[1745815548639,0.8054,1790.8,1790.3,13.15344247]
[1745815548942,0.8054,1790.8,1790.3,9.24348538]
[1745815549312,0.31369404,1790.7,1790.3,9.24348538]
[1745815550204,0.31369404,1790.6,1790.3,9.24348538]
[1745815551040,0.8054,1790.8,1790.3,9.24348538]
[1745815551198,2.007652,1790.8,1790.3,9.24348538]
[1745815551948,0.8054,1790.8,1790.3,9.24348538]
[1745815552249,0.31384185,1790.7,1790.3,9.24348538]
[1745815552811,0.31384185,1790.6,1790.3,9.24348538]
[1745815553843,0.31384185,1790.5,1790.3,9.24348538]
[1745815555047,0.8054,1790.8,1790.3,9.24348538]
[1745815556036,0.31412525,1790.7,1790.3,9.24348538]
[1745815557342,0.31412525,1790.6,1790.3,9.24348538]
[1745815558351,0.31412525,1790.5,1790.3,9.24348538]
[1745815559346,0.8054,1790.8,1790.3,9.24348538]
[1745815560143,0.31426753,1790.7,1790.3,9.24348538]
[1745815560813,0.8054,1790.8,1790.3,9.24348538]
[1745815561013,0.31426733,1790.6,1790.3,9.24348538]
[1745815562118,0.31426733,1790.5,1790.3,9.24348538]
[1745815562319,0.31426733,1790.5,1790.4,4.723]
[1745815567366,0.31426733,1790.5,1790.4,10.45369284]
[1745815567768,0.31426733,1791.1,1790.5,0.6187]
[1745815567931,0.31426733,1791.1,1790.8,0.6187]
[1745815568119,0.31426733,1791.1,1790.9,4.723]
[1745815568523,0.31426733,1791.0,1790.9,4.723]
[1745815569428,1.202252,1791.3,1790.9,4.723]
[1745815569629,1.202252,1791.2,1790.9,4.723]
[1745815570157,0.31369717,1791.1,1790.9,4.723]
[1745815571165,1.202252,1791.2,1790.9,4.723]
[1745815572838,1.61918179,1791.3,1790.9,4.723]
[1745815573166,1.202252,1791.3,1790.9,4.723]
[1745815573370,0.31334801,1791.2,1790.9,4.723]
[1745815574067,0.31334801,1791.1,1790.9,4.723]
[1745815574948,0.31334801,1791.2,1790.9,4.723]
[1745815575875,0.31334801,1791.3,1790.9,4.723]
[1745815576677,1.20595898,1791.4,1790.9,4.723]
[1745815577649,1.20595898,1791.4,1791.0,0.6187]
[1745815577856,4.961052,1791.6,1791.0,0.6187]
[1745815578067,6.06084229,1791.6,1791.0,0.6187]
[1745815578265,0.31307007,1791.5,1791.0,0.6187]
[1745815579081,0.31307007,1791.4,1791.0,0.6187]
[1745815580249,0.31307007,1791.5,1791.1,1.202252]
[1745815580569,0.31307007,1791.5,1791.2,0.6187]
[1745815580886,0.31307007,1791.5,1791.4,0.6187]
[1745815581075,0.31307007,1791.5,1791.4,5.72851033]
[1745815581475,0.31307007,1792.1,1791.5,0.6187]
[1745815581691,0.31307007,1792.1,1791.7,4.52551828]
[1745815581867,0.31307007,1792.1,1791.8,4.72]
[1745815582343,1.24637135,1792.3,1791.8,4.72]
[1745815582551,0.75,1792.4,1791.9,0.6187]
[1745815583167,1.06206195,1792.4,1791.9,0.6187]
[1745815584086,0.75,1792.4,1791.9,0.6187]
[1745815585251,0.75,1792.4,1791.9,4.52512352]
[1745815585776,0.8103,1792.6,1791.9,4.52507513]
[1745815585978,0.8103,1792.6,1792.0,3.90624716]
[1745815586191,0.8103,1792.6,1792.1,0.6187]
[1745815586349,0.8103,1792.6,1792.2,4.718]
[1745815586782,3.0,1792.7,1792.2,4.718]
[1745815586969,3.0,1792.7,1792.3,0.6187]
[1745815587169,0.8103,1792.8,1792.3,0.6187]
[1745815590984,0.8103,1792.8,1792.4,9.62519058]
[1745815594125,0.7829,1792.5,1791.3,0.6187]
[1745815594269,0.6300526,1791.8,1791.4,4.717]
[1745815595593,0.7829,1791.9,1791.4,4.717]
[1745815596198,0.7829,1791.9,1791.5,4.717]
[1745815596791,0.6300526,1791.8,1791.5,4.717]
[1745815597701,0.6300526,1791.8,1791.6,4.717]
[1745815598081,1.04259384,1791.8,1791.6,4.717]
[1745815599514,0.41254124,1791.8,1791.6,4.717]
[1745815599729,0.7829,1791.9,1791.6,4.717]
[1745815600603,0.8063,1792.1,1791.6,4.717]
[1745815600819,1.21995177,1792.1,1791.7,0.6187]
[1745815601019,0.41365177,1792.1,1791.7,0.6187]
[1745815601309,0.6300526,1792.2,1791.7,0.6187]
[1745815602498,0.8063,1792.3,1791.7,0.6187]
[1745815602695,0.6300526,1792.4,1791.7,4.52550359]
[1745815602894,0.6300526,1792.4,1791.7,4.52550191]
[1745815604021,0.6300526,1792.4,1791.8,3.90663959]
[1745815604319,0.6300526,1792.4,1791.7,4.52546959]
[1745815604714,0.6300526,1792.4,1791.8,3.90667931]
[1745815604923,0.6300526,1792.4,1791.7,4.52546959]
[1745815604924,1.05518655,1792.4,1791.7,4.52547984]
[1745815609194,1.05518655,1792.4,1791.7,0.6187]
[1745815610217,1.05518655,1792.4,1791.7,4.52558234]
[1745815610448,0.31227489,1792.3,1791.7,4.52558234]
[1745815612192,1.3819526,1792.2,1791.6,21.475]
[1745815613030,1.3819526,1792.2,1791.7,4.716]
[1745815613998,0.7519,1792.2,1791.7,4.716]
[1745815614399,0.31241639,1792.3,1791.8,4.52536105]
[1745815616030,0.31241639,1792.3,1791.8,0.6187]
[1745815620632,0.31241639,1792.3,1791.7,8.62277839]
[1745815620836,0.31241639,1792.3,1791.7,13.14826004]
[1745815621036,0.31241639,1792.3,1791.8,3.9066655]
[1745815622128,0.31241639,1792.3,1791.8,3.90655523]
[1745815622437,0.31241639,1792.3,1791.7,9.24149134]
[1745815622438,0.31241639,1792.3,1792.0,3.90608551]
[1745815622636,0.31241639,1792.3,1792.1,5.3347]
[1745815622843,0.31241639,1792.5,1792.1,5.3347]
[1745815623247,0.31241639,1792.5,1792.1,4.716]
[1745815623401,0.8161,1792.4,1791.9,0.6187]
[1745815623605,1.12851639,1792.4,1792.0,4.716]
[1745815624640,0.31241639,1792.3,1792.0,4.716]
[1745815624814,0.31241639,1792.3,1792.0,8.62219924]
[1745815625017,0.31241639,1792.3,1792.0,4.716]
[1745815625208,1.22849358,1792.4,1792.0,4.716]
[1745815626139,1.22849358,1792.4,1792.0,8.62222631]
[1745815626523,1.22849358,1792.4,1792.0,8.62224597]
[1745815626719,1.22849358,1792.4,1792.0,4.716]
[1745815628145,0.8161,1792.4,1792.0,4.716]
[1745815628341,0.8161,1792.4,1792.0,8.62222503]
[1745815628643,0.8161,1792.4,1792.0,4.716]
[1745815629048,0.8161,1792.4,1792.0,8.62223764]
[1745815629615,1.4461526,1792.4,1791.6,16.758]
[1745815629936,0.7603,1792.2,1791.7,4.715]
[1745815630138,0.31338127,1792.1,1791.7,4.715]
[1745815630948,0.31338127,1792.0,1791.7,8.62187713]
[1745815631740,0.31338127,1792.0,1791.7,4.715]
[1745815631934,0.7603,1792.2,1791.7,4.715]
[1745815632417,0.31365028,1792.1,1791.7,4.715]
[1745815632618,0.7911,1792.0,1791.7,4.715]
[1745815641091,1.20805991,1792.0,1791.5,0.6187]
[1745815641256,1.0982043,1791.9,1791.6,4.715]
[1745815641445,1.0982043,1791.9,1791.3,16.758]
[1745815641446,0.8192,1791.8,1791.3,16.758]
[1745815641646,0.8192,1791.8,1791.4,4.715]
[1745815647289,0.8192,1791.8,1791.5,4.716]
[1745815647662,0.31315085,1791.7,1791.5,4.716]
[1745815648655,0.7673,1791.6,1791.2,6.09057297]
[1745815648856,1.3973526,1791.6,1791.3,4.716]
[1745815649168,0.83707645,1791.5,1791.3,4.716]
[1745815649489,0.7673,1791.5,1791.2,5.79909601]
[1745815649886,0.31299828,1791.4,1791.2,5.79909601]
[1745815650061,0.7752,1791.3,1791.2,10.51509601]
[1745815653686,1.20262791,1791.3,1791.2,10.51509601]
[1745815657774,1.18072791,1791.3,1790.8,4.716]
[1745815658010,0.7533,1791.2,1790.8,4.716]
[1745815658807,0.7533,1791.2,1790.8,5.3347]
[1745815659181,0.7533,1791.2,1790.8,9.24353974]
[1745815659396,0.3125139,1791.3,1790.8,9.24343698]
[1745815659617,3.7687,1791.4,1790.8,9.24343698]
[1745815660201,3.7687,1791.4,1790.8,5.3347]
[1745815660596,4.19257349,1791.4,1790.8,5.3347]
[1745815661389,1.19257349,1791.4,1790.8,5.3347]
[1745815662319,1.19257349,1791.4,1790.8,9.24347004]
[1745815662924,1.19257349,1791.4,1790.9,7.81709151]
[1745815663224,1.19257349,1791.4,1790.9,3.90849275]
[1745815666834,1.19257349,1791.4,1790.8,9.24344099]
[1745815669104,1.19257349,1791.4,1790.9,3.90864308]
[1745815669641,1.19257349,1791.4,1790.8,9.243435]
[1745815670942,1.19257349,1791.4,1790.9,3.90854788]
[1745815671507,1.19257349,1791.4,1790.8,9.24347464]
[1745815672252,0.31320297,1791.3,1790.8,9.24347464]
[1745815672848,0.31320297,1791.3,1790.9,4.716]
[1745815673147,1.19257349,1791.4,1790.9,8.62464747]
[1745815674633,0.31336126,1791.3,1790.9,8.62464747]
[1745815675029,0.31336126,1791.3,1791.0,3.90841677]
[1745815675234,0.31336126,1791.3,1791.2,3.90799464]
[1745815675755,0.8163,1791.6,1791.2,3.90799464]
[1745815675957,0.8163,1791.6,1791.3,4.716]
[1745815679851,0.8163,1791.6,1791.3,8.62374638]
[1745815680174,0.7573,1791.8,1791.3,5.3460526]
[1745815680471,0.7573,1791.8,1791.5,3.9072114]
[1745815680472,0.31347206,1791.7,1791.5,3.9072114]
[1745815680679,0.31347206,1791.7,1791.5,3.90718233]
[1745815680880,0.31347206,1791.7,1791.6,3.90712212]
[1745815681083,0.31347206,1791.7,1791.5,3.90723649]
[1745815681250,0.8229,1792.0,1791.5,7.81442845]
[1745815681885,0.8229,1792.0,1791.5,3.90719196]
[1745815682542,0.8229,1792.0,1791.7,3.90682179]
[1745815682744,0.8229,1792.0,1791.8,4.715]
[1745815684465,1.13570551,1792.0,1791.8,4.715]
[1745815686837,0.8229,1792.0,1791.8,4.715]
[1745815688878,1.13549369,1792.0,1791.8,4.715]
[1745815689065,0.7673,1791.9,1791.8,4.715]
[1745815691479,0.7673,1791.9,1791.4,4.5262475]
[1745815691775,0.7673,1791.9,1791.7,4.715]
[1745815692646,1.07989369,1791.9,1791.7,4.715]
[1745815693944,0.7673,1791.9,1791.7,4.715]
[1745815694981,1.08019716,1791.9,1791.7,4.715]
[1745815695682,0.7673,1791.9,1791.7,4.715]
[1745815696744,0.31295323,1791.8,1791.7,4.715]
[1745815698603,1.12675323,1791.8,1791.7,4.715]
[1745815699611,1.12675323,1791.8,1791.6,4.715]
[1745815701002,0.31295323,1791.7,1791.6,4.715]
[1745815704222,0.31295323,1791.9,1791.6,4.715]
[1745815705321,0.31295323,1791.8,1791.6,4.715]
[1745815706179,0.31295323,1791.7,1791.6,4.715]
[1745815707113,0.7928,1792.0,1791.6,4.715]
[1745815707316,1.27785191,1792.0,1791.6,4.715]
[1745815707779,0.31362801,1791.9,1791.6,4.715]